Workbook

Sheet Instructions
A1: Instructions
A2: This Air Change Rate Calculator is a tool for calculating air flow rates for lab space based on the ventilation risk present. The fillable worksheet contains the basic information necessary to calculate air change rates and can be copied and adjusted to suit your lab's needs. (Additional fields for users seeking further detail is provided in the "Worksheet with Additional Info" Tab.)
A3: Before completing this worksheet, a survey of the lab space should be conducted be a qualified professional to determine system information and a risk level number (or RCB) for each lab space (Refer to the Laboratory Ventilation Risk Assessment Tool (LVRA Tool) and LVRA User Guide). Once the risk level for each lab space is determined using the LVRA Tool, follow these instructions, supplemented by the Instructional Infographic.
A5: 1. Enter Room Information
A6: In each row, enter information for each room/labspace, including its number, name, area, and height. It is recommended that you create a separate tab for each floor of the lab building being evaluated.
A7: Select the risk level (also refered to as risk control band) number from the dropdown for each room. This worksheet automatically color codes risk control bands as a visual que for surveyors. Upon choosing the risk level, recommended air changes (occupied and unoccupied) will be provided in the following columns based on following ASHRAE Design Levels and ASHRAE 62.1 guidelines. See the ASHRAE Design Levels tab and Glossary of Terms: Risk Control Band for more info.
A9: 2. Enter Available Supply System Information
A10: Enter information for the laboratory supply system gathered during the Lab Space Survey
A12: 3. Enter Exhaust System Information
A13: Enter information for exposure control devices and exhaust gathered during the Exposure Control Device survey.
A15: 4. Enter Exhaust and Exposure Control Device Information
A16: The exhaust type, size, and quantity will determine the room flow rates. Enter all available information for each exhaust device in the lab space. Detailed information is necessary to provide accurate calculations, especially regarding fume hoods.
A18: 4. Resultant Air Change Rate
A19: Resultant Air Changes per Hour (ACH) will be calculated automatically by formulas integrated into the spreadsheet. See the Instructional Infographic for detailed descriptions of formulas used in this calculator.
A20: A Note on Additions
A21: To add additional rooms, copy whole row for a room and paste below last row. Double check all calculations are as expected using the formulas provided on the instructional infographic.
A22: If adding additional lines (e.g. additional valves or box numbers), insert a row in the middle of the merged cells and double check that calculations are as expected.
A23: Disclaimer: This tool is designed to serve as a guide and can be modified to suit your institution's needs. All calculations should be thoroughly reviewed by laboratory ventilation specialists prior to commissioning to ensure proper ventilation system design.

Sheet Instructional Infographic
B3: Room Information | K3: Supply | R3: Exhaust | AP3: Results
K4: System Info | P4: Room Supply Flows | R4: System Info | X4: Fume Hood Info | AG4: Box Flows | AJ4: Room Flow, Qex, (based on Exhaust Devices) | AL4: Room Flow, Qex, (based on ACH) | AN4: Room Exhaust Flows | AP4: Air Change Rates
B5: Room # | C5: Room Name | D5: Area (ft2) | E5: Height (ft) | F5: Volume (ft3) | G5: Room Type | H5: Risk Level # | I5: ASHRAE Recommended Room Air Changes (Occupied) | J5: ASHRAE Recommended Room Air Changes (Unoccupied) | K5: AHU # | L5: VAV Box # | M5: Box Size | N5: Box Max Flows (cfm) | O5: Box Min Flows (cfm) | P5: Room Flow @ Min (cfm) | Q5: Room Flow @ Max (cfm) | R5: Exh. Fan # | S5: VVE Box # | T5: Box Size | U5: Max Box Flows (cfm) | V5: Min Box Flows (cfm) | W5: Exhaust Type | X5: Total Width (Ft) | Y5: Device Height (in) | Z5: Face Width (in) | AA5: Hood Depth* (in) | AB5: Opening Height (in) | AC5: Hood Interior Volume (ft3) | AD5: Face Area (ft2) | AE5: Face velocity (FPM) | AF5: RCB Rating | AG5: Min ACH based on RCB rating | AH5: Min Flow (Based on RCB rating & size) (cfm) | AI5: Max Flow (FH @ 18 in.) (cfm) | AJ5: Room Min Flow (ECDs @ Min) (cfm) | AK5: Room Max Flow (ECDs @ Max) (cfm) | AL5: Room Min Flow (cfm) | AM5: Room Max Flow (cfm) | AN5: Room Min Flow (cfm) | AO5: Room Min Flow (cfm) | AP5: Min ACH | AQ5: Max ACH | AR5: Min cfm/sf | AS5: Max cfm/sf | AT5: Notes
A6: Example | B6: 3111 | C6: Tissue Culture | D6: 324 | E6: 9 | F6: =D6*E6 -> 2916 | G6: Lab | H6: 2 | I6: =VLOOKUP(H6,$H$16:$I$20,2,TRUE) -> 4 | J6: =VLOOKUP(H6,$H$16:$J$20,3,TRUE) -> 1.7 | K6: AH-1, AH-3 | L6: M49 | M6: 110 | O6: 50 | P6: =AN6*0.9 -> 263.5416667 | Q6: =AO6*0.9 -> 1687.5 | R6: EAH-1, EAH-3 | S6: M71 | T6: 110 | U6: =AI6 -> 475 | V6: =AH6 -> 60.69444444 | W6: FH | X6: 4 | Y6: 48 | Z6: =X6*12-10 -> 38 | AA6: 23 | AB6: 18 | AC6: =AA6*Z6*Y6/(12*12*12) -> 24.27777778 | AD6: =AB6*Z6/(12*12) -> 4.75 | AE6: 100 | AF6: 1 | AG6: =VLOOKUP(AF6,$AF$16:$AG$20,2,TRUE) -> 150 | AH6: =AG6*AC6/60 -> 60.69444444 | AI6: =AE6*AD6 -> 475 | AJ6: =SUM(AH6:AH11) -> 292.8240741 | AK6: =SUM(AI6:AI11) -> 1875 | AL6: =J6*F6/60 -> 82.62 | AM6: =I6*F6/60 -> 194.4 | AN6: =MAX(AJ6,AM6) -> 292.8240741 | AO6: =MAX(AK6,AM6) -> 1875 | AP6: =AN6*60/F6 -> 6.025186709 | AQ6: =AO6*60/F6 -> 38.58024691 | AR6: =AN6/D6 -> 0.9037780064 | AS6: =AO6/D6 -> 5.787037037
F7: 0 | L7: - | S7: M72 | T7: 110 | U7: =AI7 -> 625 | V7: =AH7 -> 133.1018519 | W7: FH | X7: 5 | Y7: 48 | Z7: =X7*12-10 -> 50 | AA7: 23 | AB7: 18 | AC7: =AA7*Z7*Y7/(12*12*12) -> 31.94444444 | AD7: =AB7*Z7/(12*12) -> 6.25 | AE7: 100 | AF7: 3 | AG7: =VLOOKUP(AF7,$AF$16:$AG$20,2,TRUE) -> 250 | AH7: =AG7*AC7/60 -> 133.1018519 | AI7: =AE7*AD7 -> 625
F8: 0 | L8: - | S8: M73 | U8: 775 | V8: =AH8 -> 99.02777778 | W8: FH | X8: 6 | Y8: 48 | Z8: =X8*12-10 -> 62 | AA8: 23 | AB8: 18 | AC8: =AA8*Z8*Y8/(12*12*12) -> 39.61111111 | AD8: =AB8*Z8/(12*12) -> 7.75 | AE8: 100 | AF8: 1 | AG8: =VLOOKUP(AF8,$AF$16:$AG$20,2,TRUE) -> 150 | AH8: =AG8*AC8/60 -> 99.02777778 | AI8: =AE8*AD8 -> 775
F10: 0 | L10: - | S10: - | W10: BSC
F11: 0 | L11: - | S11: M5 | T11: 110 | W11: GX | AH11: 0 | AI11: 0
A12: Formulas Explained
H14: Room Air Change Recommendations based on Risk Levelᶧ | X14: Typical Dimensions | AF14: Fumehood
H15: Risk Level | I15: Air changes (Occupied) | J15: Air changes (Unoccupied) | K15: Notes | X15: Fume Hood Width | Y15: Fume Hood Height | Z15: Fume Face Width | AA15: Fume Hood Depth | AB15: Fume Hood Opening Height | AF15: Risk Level | AG15: Minimum Air changes inside fumehoodᶧᶧ
H16: 0 | I16: 1.7 | J16: 1.7 | K16: Based on ASHRAE 62.1 | X16: 4' | Y16: 48" | Z16: Varies | AA16: 23" to 27" | AB16: 18" | AF16: 0 | AG16: 150
H17: 1 | I17: 1.7 | J17: 1.7 | K17: Based on ASHRAE 62.1 | X17: 5' | Y17: 48" | AB17: 18" | AF17: 1 | AG17: 150
H18: 2 | I18: 4 | J18: 1.7 | K18: 4 to 6 recommended | X18: 6' | Y18: 48" | AB18: 18" | AF18: 2 | AG18: 150
H19: 3 | I19: 6 | J19: 4 | K19: 6 to 8 recommended | X19: 8' | Y19: 48" | AB19: 18" | AF19: 3 | AG19: 250
H20: 4 | I20: 8 | J20: 4 | K20: 8 or more | AF20: 4 | AG20: 375
H21: ᶧRecommendations are from ASHRAE Classification of Laboratory Ventilation Design Levels | AF21: ᶧᶧ From ANSI Standard Z9.5

Sheet Fillable Worksheet
B3: Room Information | K3: Supply | R3: Exhaust | AP3: Results
K4: System Info | P4: Room Supply Flows | R4: System Info | X4: Fume Hood Info | AG4: Box Flows | AJ4: Room Flow, Qex, (based on Exhaust Devices) | AL4: Room Flow, Qex, (based on ACH) | AN4: Room Exhaust Flows | AP4: Air Change Rates
B5: Room # | C5: Room Name | D5: Area (ft2) | E5: Height (ft) | F5: Volume (ft3) | G5: Room Type | H5: Risk Level # | I5: ASHRAE Recommended Room Air Changes (Occupied) | J5: ASHRAE Recommended Room Air Changes (Unoccupied) | K5: AHU # | L5: VAV Box # | M5: Box Size | N5: Box Max Flows (cfm) | O5: Box Min Flows (cfm) | P5: Room Flow @ Max (cfm) | Q5: Room Flow @ Min (cfm) | R5: Exh. Fan # | S5: VVE Box # | T5: Box Size | U5: Max Box Flows (cfm) | V5: Min Box Flows (cfm) | W5: Exhaust Type | X5: Total Width (Ft) | Y5: Device Height (in) | Z5: Face Width (in) | AA5: Hood Depth* (in) | AB5: Opening Height (in) | AC5: Hood Interior Volume (ft3) | AD5: Face Area (ft2) | AE5: Face velocity (FPM) | AF5: RCB Rating | AG5: Min ACH based on RCB rating | AH5: Min Flow (Based on RCB rating & size) (cfm) | AI5: Max Flow (FH @ 18 in.) (cfm) | AJ5: Room Min Flow (ECDs @ Min) (cfm) | AK5: Room Max Flow (ECDs @ Max) (cfm) | AL5: Room Min Flow (cfm) | AM5: Room Max Flow (cfm) | AN5: Room Min Flow (cfm) | AO5: Room Min Flow (cfm) | AP5: Max ACH | AQ5: Min ACH | AR5: Max cfm/sf | AS5: Min cfm/sf | AT5: Notes
A6: Example | B6: 3111 | C6: Tissue Culture | D6: 324 | E6: 9 | F6: =D6*E6 -> 2916 | G6: Lab | H6: 2 | I6: =VLOOKUP(H6,$H$52:$I$56,2,TRUE) -> 4 | J6: =VLOOKUP(H6,$H$52:$J$56,3,TRUE) -> 1.7 | K6: AH-1, AH-3 | L6: M49 | M6: 110 | O6: 50 | P6: =AN6*0.9 -> 263.5416667 | Q6: =AO6*0.9 -> 1687.5 | R6: EAH-1, EAH-3 | S6: M71 | T6: 110 | V6: =AH6 -> 60.69444444 | W6: FH | X6: 4 | Y6: 48 | Z6: =X6*12-10 -> 38 | AA6: 23 | AB6: 18 | AC6: =AA6*Z6*Y6/(12*12*12) -> 24.27777778 | AD6: =AB6*Z6/(12*12) -> 4.75 | AE6: 100 | AF6: 1 | AG6: =VLOOKUP(AF6,$AF$52:$AG$56,2,TRUE) -> 150 | AH6: =AG6*AC6/60 -> 60.69444444 | AI6: =AE6*AD6 -> 475 | AJ6: =SUM(AH6:AH11) -> 292.8240741 | AK6: =SUM(AI6:AI11) -> 1875 | AL6: =J6*F6/60 -> 82.62 | AM6: =I6*F6/60 -> 194.4 | AN6: =MAX(AJ6,AM6) -> 292.8240741 | AO6: =MAX(AK6,AM6) -> 1875 | AP6: =AN6*60/F6 -> 6.025186709 | AQ6: =AO6*60/F6 -> 38.58024691 | AR6: =AN6/D6 -> 0.9037780064 | AS6: =AO6/D6 -> 5.787037037
F7: 0 | L7: - | S7: M72 | T7: 110 | V7: 50 | W7: FH | X7: 5 | Y7: 48 | Z7: =X7*12-10 -> 50 | AA7: 23 | AB7: 18 | AC7: =AA7*Z7*Y7/(12*12*12) -> 31.94444444 | AD7: =AB7*Z7/(12*12) -> 6.25 | AE7: 100 | AF7: 3 | AG7: =VLOOKUP(AF7,$AF$52:$AG$56,2,TRUE) -> 250 | AH7: =AG7*AC7/60 -> 133.1018519 | AI7: =AE7*AD7 -> 625
F8: 0 | L8: - | S8: - | W8: FH | X8: 6 | Y8: 48 | Z8: =X8*12-10 -> 62 | AA8: 23 | AB8: 18 | AC8: =AA8*Z8*Y8/(12*12*12) -> 39.61111111 | AD8: =AB8*Z8/(12*12) -> 7.75 | AE8: 100 | AF8: 1 | AG8: =VLOOKUP(AF8,$AF$52:$AG$56,2,TRUE) -> 150 | AH8: =AG8*AC8/60 -> 99.02777778 | AI8: =AE8*AD8 -> 775
F10: 0 | L10: - | S10: - | W10: BSC
F11: 0 | L11: - | S11: M5 | T11: 110 | V11: 50 | W11: GX | AH11: 0 | AI11: 0
F13: =D13*E13 -> 0 | G13: Lab | I13: =VLOOKUP(H13,$H$52:$I$56,2,TRUE) -> 1.7 | J13: =VLOOKUP(H13,$H$52:$J$56,3,TRUE) -> 1.7 | P13: =AN13*0.9 -> 0 | Q13: =AO13*0.9 -> 0 | AG13: =VLOOKUP(AF13,$AF$52:$AG$56,2,TRUE) -> 150 | AH13: =AG13*AC13/60 -> 0 | AI13: =AE13*AD13 -> 0 | AJ13: =SUM(AH13:AH18) -> 0 | AK13: 0 | AL13: =J13*F13/60 -> 0 | AM13: =I13*F13/60 -> 0 | AN13: =MAX(AJ13,AM13) -> 0 | AO13: =MAX(AK13,AM13) -> 0 | AP13: =AN13*60/F13 ->  | AQ13: =AO13*60/F13 ->  | AR13: =AN13/D13 ->  | AS13: =AO13/D13 -> 
F14: 0 | AG14: =VLOOKUP(AF14,$AF$52:$AG$56,2,TRUE) -> 150 | AH14: 0 | AI14: 0
F15: 0 | AG15: 150 | AH15: 0 | AI15: 0
F17: 0
F18: 0 | AH18: 0 | AI18: 0
F20: =D20*E20 -> 0 | G20: Lab | I20: =VLOOKUP(H20,$H$52:$I$56,2,TRUE) -> 1.7 | J20: =VLOOKUP(H20,$H$52:$J$56,3,TRUE) -> 1.7 | P20: =AN20*0.9 -> 0 | Q20: =AO20*0.9 -> 0 | AG20: =VLOOKUP(AF20,$AF$52:$AG$56,2,TRUE) -> 150 | AH20: =AG20*AC20/60 -> 0 | AI20: =AE20*AD20 -> 0 | AJ20: =SUM(AH20:AH25) -> 0 | AK20: 0 | AL20: =J20*F20/60 -> 0 | AM20: =I20*F20/60 -> 0 | AN20: =MAX(AJ20,AM20) -> 0 | AO20: =MAX(AK20,AM20) -> 0 | AP20: =AN20*60/F20 ->  | AQ20: =AO20*60/F20 ->  | AR20: =AN20/D20 ->  | AS20: =AO20/D20 -> 
F21: 0 | AG21: 150 | AH21: 0 | AI21: 0
F22: 0 | AG22: 150 | AH22: 0 | AI22: 0
F24: 0
F25: 0 | AH25: 0 | AI25: 0
F27: =D27*E27 -> 0 | G27: Lab | I27: =VLOOKUP(H27,$H$52:$I$56,2,TRUE) -> 1.7 | J27: =VLOOKUP(H27,$H$52:$J$56,3,TRUE) -> 1.7 | P27: =AN27*0.9 -> 0 | Q27: =AO27*0.9 -> 0 | AG27: =VLOOKUP(AF27,$AF$52:$AG$56,2,TRUE) -> 150 | AH27: =AG27*AC27/60 -> 0 | AI27: =AE27*AD27 -> 0 | AJ27: =SUM(AH27:AH32) -> 0 | AK27: 0 | AL27: =J27*F27/60 -> 0 | AM27: =I27*F27/60 -> 0 | AN27: =MAX(AJ27,AM27) -> 0 | AO27: =MAX(AK27,AM27) -> 0 | AP27: =AN27*60/F27 ->  | AQ27: =AO27*60/F27 ->  | AR27: =AN27/D27 ->  | AS27: =AO27/D27 -> 
F28: 0 | AG28: 150 | AH28: 0 | AI28: 0
F29: 0 | AG29: 150 | AH29: 0 | AI29: 0
F31: 0
F32: 0 | AH32: 0 | AI32: 0
F34: =D34*E34 -> 0 | G34: Lab | I34: =VLOOKUP(H34,$H$52:$I$56,2,TRUE) -> 1.7 | J34: =VLOOKUP(H34,$H$52:$J$56,3,TRUE) -> 1.7 | P34: =AN34*0.9 -> 0 | Q34: =AO34*0.9 -> 0 | AG34: =VLOOKUP(AF34,$AF$52:$AG$56,2,TRUE) -> 150 | AH34: =AG34*AC34/60 -> 0 | AI34: =AE34*AD34 -> 0 | AJ34: =SUM(AH34:AH39) -> 0 | AK34: 0 | AL34: =J34*F34/60 -> 0 | AM34: =I34*F34/60 -> 0 | AN34: =MAX(AJ34,AM34) -> 0 | AO34: =MAX(AK34,AM34) -> 0 | AP34: =AN34*60/F34 ->  | AQ34: =AO34*60/F34 ->  | AR34: =AN34/D34 ->  | AS34: =AO34/D34 -> 
F35: 0 | AG35: 150 | AH35: 0 | AI35: 0
F36: 0 | AG36: 150 | AH36: 0 | AI36: 0
F38: 0
F39: 0 | AH39: 0 | AI39: 0
F41: =D41*E41 -> 0 | G41: Lab | I41: =VLOOKUP(H41,$H$52:$I$56,2,TRUE) -> 1.7 | J41: =VLOOKUP(H41,$H$52:$J$56,3,TRUE) -> 1.7 | P41: =AN41*0.9 -> 0 | Q41: =AO41*0.9 -> 0 | AG41: =VLOOKUP(AF41,$AF$52:$AG$56,2,TRUE) -> 150 | AH41: =AG41*AC41/60 -> 0 | AI41: =AE41*AD41 -> 0 | AJ41: =SUM(AH41:AH46) -> 0 | AK41: 0 | AL41: =J41*F41/60 -> 0 | AM41: =I41*F41/60 -> 0 | AN41: =MAX(AJ41,AM41) -> 0 | AO41: =MAX(AK41,AM41) -> 0 | AP41: =AN41*60/F41 ->  | AQ41: =AO41*60/F41 ->  | AR41: =AN41/D41 ->  | AS41: =AO41/D41 -> 
F42: 0 | AG42: 150 | AH42: 0 | AI42: 0
F43: 0 | AG43: 150 | AH43: 0 | AI43: 0
F45: 0
F46: 0 | AH46: 0 | AI46: 0
A48: Do Not Delete
H50: Room Air Change Recommendations based on Risk Levelᶧ | X50: Typical Dimensions | AF50: Fumehood
H51: Risk Level | I51: Air changes (Occupied) | J51: Air changes (Unoccupied) | K51: Notes | X51: Fume Hood Width | Y51: Fume Hood Height | Z51: Fume Face Width | AA51: Fume Hood Depth | AB51: Fume Hood Opening Height | AF51: Risk Level | AG51: Minimum Air changes inside fumehoodᶧᶧ
H52: 0 | I52: 1.7 | J52: 1.7 | K52: Based on ASHRAE 62.1 | X52: 4 | Y52: 48" | Z52: Varies | AA52: 23" | AB52: 18" | AF52: 0 | AG52: 150
H53: 1 | I53: 1.7 | J53: 1.7 | K53: Based on ASHRAE 62.1 | X53: 5 | AA53: 27" | AF53: 1 | AG53: 150
H54: 2 | I54: 4 | J54: 1.7 | K54: 4 to 6 recommended | X54: 6 | AF54: 2 | AG54: 150
H55: 3 | I55: 6 | J55: 4 | K55: 6 to 8 recommended | X55: 8 | AF55: 3 | AG55: 250
H56: 4 | I56: 8 | J56: 4 | K56: 8 or more | AF56: 4 | AG56: 250
H57: ᶧRecommendations are from ASHRAE Classification of Laboratory Ventilation Design Levels | AF57: ᶧᶧ From ANSI Standard Z9.5

Sheet Worksheet (Example)
B2: Room Information | K2: Supply | AF2: Transfer Flow | AJ2: Exhaust | BX2: Calculated Metrics
K3: System Info | O3: Qs based on Conditioning | Q3: Qs to maintain dP | S3: Qs based on ACH | U3: Room Supply Flows | W3: Box Level Supply Set Points | AA3: Box Level Existing Supply Set Points | AC3: Zone Supply Flows | AJ3: System Info | AO3: Fume Hood Info | AX3: Box Flows | BA3: Duct Transport Velocity | BE3: Qex based on Conditioning | BG3: Qex based on Exhaust Devices | BI3: Qex to maintain dP | BK3: Qex based on ACH | BM3: Room Exhaust Flows | BO3: Box Level Exhaust Set Points | BS3: Zone Exhaust Flows | BX3: Resultant ACH
K4: Tags, ID, type, etc. | O4: Based on heat load | P4: Based on sash closed/ not in use | Q4: Room Exhaust & Transfer Flow | S4: ACH Exhaust & Transfer Flow | U4: Max/Min of Conditioning, dP, & ACH | W4: Based on Current Box Design | Y4: Based on Optimized Box Supply Flows | AA4: Based on Current BAS Data | AC4: Based on Sum of Optimized Box Flows in Zone | AF4: 100 cfm per door | AG4: 10% of Max Exh. | AH4: Greater of per door or 10% | AJ4: Tags, ID, type, etc. | AO4: Dims, Area, etc. | AY4: Sash Open/In Use | AZ4: Sash Closed/Not In Use | BA4: FH Duct | BB4: LVRA RCB Criteria | BC4: Resultant air velocity | BD4: Necessary Flow | BE4: Includes Transfer Flow | BG4: No GX | BI4: Includes GX | BK4: @ Occ ACH | BL4: @ Unocc ACH | BM4: Max/Min based on Exh Devices, dP, Cond., or ACH | BO4: Based on Current Box Design | BQ4: Based on Optimized Exhaust Flows | BS4: Based on Sum of Optimized Box Flows in Zone | BX4: Based on Room Exhaust Flows
B5: Room # | C5: Room Name | D5: Area (ft2) | E5: Height (ft) | F5: Volume (ft3) | G5: Room Type | H5: Heat Load Label (1-5) | I5: Risk Level # | K5: AHU # | L5: VAV Box # | M5: Box Size | N5: Box Min Flows (cfm) | O5: Max Flow (Full Cooling) (cfm) | P5: Min Flow (Full Heating) (cfm) | Q5: Max Flow based on Max Exhaust (cfm) | R5: Min Flow based on Min Exhaust (cfm) | S5: Max Flow based on Max ACH Exhaust (cfm) | T5: Min Flow based on Min ACH Exhaust (cfm) | U5: Room Flow @ Max (cfm) | V5: Room Flow @ Min (cfm) | W5: Box Supply Flow @ Max (cfm) | X5: Box Supply Flow @ Min (cfm) | Y5: Supply Box Flow @ Max (cfm) | Z5: Supply Box Flow @ Min (cfm) | AA5: Supply Box Flow @ Max (cfm) | AB5: Supply Box Flow @ Min (cfm) | AC5: Zone Supply Flow @ Max. (cfm) | AD5: Zone Supply Flow @ Min. (cfm) | AF5: Door Transfer Flow (cfm) | AG5: Flow @ 10% Max. Device Exh. (cfm) | AH5: Greater of Door and 10% Max Exh (cfm) | AJ5: Exh. Fan # | AK5: VVE Box # | AL5: Box Size | AM5: Min Box Flows (cfm) | AN5: Exhaust Type | AO5: RCB Rating | AP5: Retrofit? (y/n) | AQ5: Total Width (in) | AR5: Device Height (in) | AS5: Face Width (in) | AT5: Hood Depth (in) | AU5: Opening Height (in) | AV5: Hood Interior Volume (ft3) | AW5: Face Area (ft2) | AX5: Min ACH based on RCB rating | AY5: Max Flow (FH @ 18 in.) (cfm) | AZ5: Min Flow (Based on RCB rating & size) (cfm) | BA5: Duct Diameter (in) | BB5: Necessary Duct Velocity (fpm) | BC5: Calc. Duct Velocity from Min flow (fpm) | BD5: Flow of Min Necessary Duct Velocity (cfm) | BE5: Room Max Flow (Full Cooling) (cfm) | BF5: Room Min Flow (Full Heating) (cfm) | BG5: Room Max Flow (ECDs @ Max) (cfm) | BH5: Room Min Flow (ECDs @ Min) (cfm) | BI5: Room Max Flow (cfm) | BJ5: Room Min Flow (cfm) | BK5: Room Max Flow (cfm) | BL5: Room Min Flow (cfm) | BM5: Room Max Flow (cfm) | BN5: Room Min Flow (cfm) | BO5: Box Exhaust Flow @ Max (cfm) | BP5: Box Exhaust Flow @ Min (cfm) | BQ5: Box Flow @ Max. Room Exhaust (cfm) | BR5: Box Flow @ Min. Room Exhaust (cfm) | BS5: Zone Exhaust Flow @ Max (cfm) | BT5: Zone Exhaust Flow @ Min (cfm) | BX5: Max ACH | BY5: Min ACH | BZ5: Max cfm/sf | CA5: Min cfm/sf | CC5: Notes
A7: Example | B7: 3111 | C7: Tissue Culture | D7: 324 | E7: 9 | F7: =D7*E7 -> 2916 | G7: Lab | H7: 1 | I7: 1 | K7: AH-1, AH-3 | L7: M49 | M7: 110 | N7: 50 | O7: 301.0588235 | P7: 90.31764706 | Q7: 972 | R7: 972 | S7: -2.8 | T7: -51.4 | U7: 972 | V7: 972 | AF7: -100 | AG7: 100 | AH7: 100 | AJ7: EAH-1, EAH-3 | AK7: M71 | AL7: 110 | AM7: 50 | AN7: BSC | AY7: 268 | AZ7: 268 | BE7: 401.0588235 | BF7: 190.3176471 | BG7: 1072 | BH7: 1072 | BI7: 1072 | BJ7: 1072 | BK7: 97.2 | BL7: 48.6 | BM7: =SUM(AY7:AY12) -> 1072 | BN7: =SUM(AZ7:AZ12) -> 1072 | BU7: 2 | BV7: 2 | BX7: 22 | BY7: 22 | BZ7: 3.308641975 | CA7: 3.308641975
F8: 0 | L8: - | O8: 0 | P8: 0 | AK8: M72 | AL8: 110 | AM8: 50 | AN8: BSC | AY8: 268 | AZ8: 268
F9: 0 | L9: - | O9: 0 | P9: 0 | AK9: - | AN9: BSC | AY9: 268 | AZ9: 268
F11: 0 | L11: - | O11: 0 | P11: 0 | AK11: - | AN11: BSC | AY11: 268 | AZ11: 268
F12: 0 | L12: - | O12: 0 | P12: 0 | AK12: M5 | AL12: 110 | AM12: 50 | AN12: GX | AY12: 0 | AZ12: 0
A13: x
B14: 3115 | C14: Chem Lab | D14: 1051 | E14: 9 | F14: 9459 | G14: Lab | H14: 1 | I14: 0 | K14: AH-1, AH-3 | L14: M55 | M14: 12 | N14: 240 | O14: 976.5827887 | P14: 292.9748366 | Q14: 0 | R14: 0 | S14: -100 | T14: -100 | U14: 976.5827887 | V14: 292.9748366 | AF14: 100 | AG14: 0 | AH14: 100 | AJ14: EAH-1, EAH-3 | AK14: M52 | AL14: 110 | AM14: 50 | AN14: Traditional Fume Hood | AO14: 0 | AP14: n | AQ14: 48 | AR14: 48 | AS14: 39 | AT14: 28 | AU14: 18 | AV14: 30.33333333 | AW14: 4.875 | AX14: 0 | AY14: 0 | AZ14: 0 | BA14: 10 | BB14: 0 | BC14: 0 | BD14: 0 | BE14: 1076.582789 | BF14: 392.9748366 | BG14: 0 | BH14: 0 | BI14: 100 | BJ14: 100 | BK14: 0 | BL14: 0 | BM14: 1076.582789 | BN14: 392.9748366 | BU14: 1 | BV14: 1 | BX14: 6.828942522 | BY14: 2.492704324 | BZ14: 1.024341378 | CA14: 0.3739056485
F15: 0 | L15: M58 | M15: 12 | N15: 240 | O15: 0 | P15: 0 | AK15: -
A16: x
B17: 3118 | C17: Wet Lab | D17: 191 | E17: 9 | F17: 1719 | G17: Lab | H17: 1 | I17: 2 | K17: AH-1, AH-3 | L17: M69 | M17: 108 | N17: 35 | O17: 177.4760349 | P17: 53.24281046 | Q17: 195 | R17: 195 | S17: 14.6 | T17: -42.7 | U17: 195 | V17: 195 | AF17: 100 | AG17: 25 | AH17: 100 | AJ17: EAH-1, EAH-3 | AK17: M70 | AL17: 110 | AM17: 50 | AN17: Traditional Fume Hood | AO17: 2 | AP17: n | AQ17: 48 | AR17: 48 | AS17: 39 | AT17: 28 | AU17: 18 | AV17: 30.33333333 | AW17: 4.875 | AX17: 150 | AY17: 295 | AZ17: 295 | BA17: 10 | BB17: 250 | BC17: 540.8881108 | BD17: 136.3498264 | BE17: 277.4760349 | BF17: 153.2428105 | BG17: 295 | BH17: 295 | BI17: 295 | BJ17: 295 | BK17: 114.6 | BL17: 57.3 | BM17: 295 | BN17: 295 | BU17: 2 | BV17: 2 | BX17: 10.29668412 | BY17: 10.29668412 | BZ17: 1.544502618 | CA17: 1.544502618
F18: 0 | L18: - | O18: 0 | P18: 0 | AK18: - | AN18: Wet Process Station
F19: 0 | L19: - | O19: 0 | P19: 0 | AK19: - | AN19: Wet Process Station
F20: 0 | L20: - | O20: 0 | P20: 0 | AK20: - | AN20: Wet Process Station
A21: x
B22: 3133 | C22: Chem Lab | D22: 983 | E22: 9 | F22: 8847 | G22: Lab | H22: 1 | I22: 3 | K22: AH-1, AH-3 | L22: M3 | M22: 12 | N22: 240 | O22: 913.3976035 | P22: 274.019281 | Q22: 195 | R22: 195 | S22: 489.8 | T22: 194.9 | U22: 913.3976035 | V22: 274.019281 | AF22: 100 | AG22: 25 | AH22: 100 | AJ22: EAH-1, EAH-3 | AK22: M1 | AL22: 110 | AM22: 50 | AN22: Traditional Fume Hood | AO22: 3 | AP22: n | AQ22: 48 | AR22: 48 | AS22: 39 | AT22: 28 | AU22: 18 | AV22: 30.33333333 | AW22: 4.875 | AX22: 250 | AY22: 295 | AZ22: 295 | BA22: 10 | BB22: 300 | BC22: 540.8881108 | BD22: 163.6197917 | BE22: 1013.397603 | BF22: 374.019281 | BG22: 295 | BH22: 295 | BI22: 295 | BJ22: 295 | BK22: 589.8 | BL22: 294.9 | BM22: 1013.397603 | BN22: 374.019281 | BU22: 1 | BV22: 1 | BX22: 6.872821997 | BY22: 2.536583798 | BZ22: 1.0309233 | CA22: 0.3804875697
F23: 0 | L23: M4 | M23: 110 | O23: 0 | P23: 0 | AK23: - | AN23: Traditional Fume Hood | AO23: 3 | AP23: n | AQ23: 48 | AR23: 48 | AS23: 39 | AT23: 28 | AU23: 18 | AV23: 30.33333333 | AW23: 4.875 | AX23: 250 | AY23: 295 | AZ23: 295 | BA23: 10 | BB23: 300 | BC23: 540.8881108 | BD23: 163.6197917
F24: 0 | L24: - | O24: 0 | P24: 0 | AK24: M2 | AL24: 10 | AM24: 165 | AN24: GX | AY24: 718.3976035 | AZ24: 79.01928105
A25: x
B26: 3137 | C26: Bio Lab | D26: 479 | E26: 9 | F26: 4311 | G26: Lab | H26: 1 | I26: 2 | K26: AH-1, AH-3 | L26: M7 | M26: 112 | N26: 90 | O26: 445.083878 | P26: 133.5251634 | Q26: 0 | R26: 0 | S26: 187.4 | T26: 43.7 | U26: 445.083878 | V26: 133.5251634 | AF26: 100 | AG26: 0 | AH26: 100 | AJ26: EAH-1, EAH-3 | AK26: M6 | AL26: 12 | AM26: 240 | AN26: GX | AY26: 545.083878 | AZ26: 233.5251634 | BE26: 545.083878 | BF26: 233.5251634 | BG26: 0 | BH26: 0 | BI26: 100 | BJ26: 100 | BK26: 287.4 | BL26: 143.7 | BM26: 545.083878 | BN26: 233.5251634 | BU26: 1 | BV26: 1 | BX26: 7.586414447 | BY26: 3.250176248 | BZ26: 1.137962167 | CA26: 0.4875264372
F27: 0 | L27: - | O27: 0 | P27: 0 | AK27: -
A28: x
B29: 3145 | C29: Bio Lab | D29: 479 | E29: 9 | F29: 4311 | G29: Lab | H29: 1 | I29: 1 | K29: AH-1, AH-3 | L29: M26 | M29: 114 | N29: 200 | O29: 445.083878 | P29: 133.5251634 | Q29: 0 | R29: 0 | S29: 43.7 | T29: -28.15 | U29: 445.083878 | V29: 133.5251634 | AF29: 100 | AG29: 0 | AH29: 100 | AJ29: EAH-1, EAH-3 | AK29: M24 | AL29: 16 | AM29: 420 | AN29: Gx | AY29: 545.083878 | AZ29: 233.5251634 | BE29: 545.083878 | BF29: 233.5251634 | BG29: 0 | BH29: 0 | BI29: 100 | BJ29: 100 | BK29: 143.7 | BL29: 71.85 | BM29: 545.083878 | BN29: 233.5251634 | BU29: 1 | BV29: 1 | BX29: 7.586414447 | BY29: 3.250176248 | BZ29: 1.137962167 | CA29: 0.4875264372
F30: 0 | L30: - | O30: 0 | P30: 0 | AK30: -
A31: x
B32: 3147 | C32: Bio Lab | D32: 498 | E32: 9 | F32: 4482 | G32: Lab | H32: 1 | I32: 1 | K32: AH-1, AH-3 | L32: M20 | M32: 112 | N32: 90 | O32: 462.7385621 | P32: 138.8215686 | Q32: 0 | R32: 0 | S32: 49.4 | T32: -25.3 | U32: 462.7385621 | V32: 138.8215686 | AF32: 100 | AG32: 0 | AH32: 100 | AJ32: EAH-1, EAH-3 | AK32: M22 | AL32: 110 | AM32: 50 | AN32: Traditional Fume Hood | AO32: 0 | AP32: n | AQ32: 48 | AR32: 48 | AS32: 39 | AT32: 28 | AU32: 18 | AV32: 30.33333333 | AW32: 4.875 | AX32: 0 | AY32: 0 | AZ32: 0 | BA32: 10 | BB32: 0 | BC32: 0 | BD32: 0 | BE32: 562.7385621 | BF32: 238.8215686 | BG32: 0 | BH32: 0 | BI32: 100 | BJ32: 100 | BK32: 149.4 | BL32: 74.7 | BM32: 562.7385621 | BN32: 238.8215686 | BU32: 1 | BV32: 1 | BX32: 7.533314084 | BY32: 3.197075885 | BZ32: 1.129997113 | CA32: 0.4795613828
F33: 0 | L33: - | O33: 0 | P33: 0 | AK33: M19 | AL33: 112 | AM33: 90 | AN33: GX | AY33: 562.7385621 | AZ33: 238.8215686
A34: x
B35: 3150 | C35: Autoclave Room | D35: 469 | E35: 9 | F35: 4221 | G35: Lab | H35: 1 | I35: 1 | K35: AH-1, AH-3 | L35: M44 | M35: 114 | N35: 200 | O35: 435.791939 | P35: 130.7375817 | Q35: 50 | R35: 50 | S35: 40.7 | T35: -29.65 | U35: 435.791939 | V35: 130.7375817 | AF35: 100 | AG35: 25 | AH35: 100 | AJ35: EAH-1, EAH-3 | AK35: M23 | AL35: 24 | AM35: 795 | AN35: Canopy | AY35: 150 | AZ35: 150 | BE35: 535.791939 | BF35: 230.7375817 | BG35: 150 | BH35: 150 | BI35: 150 | BJ35: 150 | BK35: 140.7 | BL35: 70.35 | BM35: 535.791939 | BN35: 230.7375817 | BU35: 1 | BV35: 1 | BX35: 7.616090107 | BY35: 3.279851908 | BZ35: 1.142413516 | CA35: 0.4919777861
F36: 0 | L36: - | O36: 0 | P36: 0 | AN36: GX | AY36: 385.791939 | AZ36: 80.7375817
A37: x
B38: 3150A | C38: Bio Lab | D38: 469 | E38: 9 | F38: 4221 | G38: Lab | H38: 1 | I38: 1 | K38: AH-1, AH-3 | L38: - | O38: 435.791939 | P38: 130.7375817 | Q38: 436 | R38: 436 | S38: 40.7 | T38: -29.65 | U38: 436 | V38: 436 | AF38: 100 | AG38: 50 | AH38: 100 | AJ38: EAH-1, EAH-3 | AK38: - | AN38: BSC | AY38: 268 | AZ38: 268 | BE38: 535.791939 | BF38: 230.7375817 | BG38: 536 | BH38: 536 | BI38: 536 | BJ38: 536 | BK38: 140.7 | BL38: 70.35 | BM38: 536 | BN38: 536 | BU38: 2 | BV38: 2 | BX38: 7.619047619 | BY38: 7.619047619 | BZ38: 1.142857143 | CA38: 1.142857143
F39: 0 | O39: 0 | P39: 0 | AN39: BSC | AY39: 268 | AZ39: 268
A40: x
B41: 3153 | C41: Equipment Room | D41: 238 | E41: 9 | F41: 2142 | G41: Lab | H41: 1 | I41: 0 | K41: AH-1, AH-3 | L41: M43 | M41: 110 | N41: 50 | O41: 221.1481481 | P41: 66.34444444 | Q41: 0 | R41: 0 | S41: -100 | T41: -100 | U41: 221.1481481 | V41: 66.34444444 | AF41: 100 | AG41: 0 | AH41: 100 | AJ41: EAH-1, EAH-3 | AK41: M28 | AL41: 12 | AM41: 240 | AN41: Gx | AY41: 321.1481481 | AZ41: 166.3444444 | BE41: 321.1481481 | BF41: 166.3444444 | BG41: 0 | BH41: 0 | BI41: 100 | BJ41: 100 | BK41: 0 | BL41: 0 | BM41: 321.1481481 | BN41: 166.3444444 | BU41: 1 | BV41: 1 | BX41: 8.995746447 | BY41: 4.659508248 | BZ41: 1.349361967 | CA41: 0.6989262372
F42: 0 | O42: 0 | P42: 0 | AK42: -
A43: x
B44: 3155 | C44: Chem Storage | D44: 238 | E44: 9 | F44: 2142 | G44: Lab | H44: 1 | I44: 2 | K44: AH-1, AH-3 | O44: 221.1481481 | P44: 66.34444444 | Q44: 0 | R44: 0 | S44: 42.8 | T44: -28.6 | U44: 221.1481481 | V44: 66.34444444 | AF44: 100 | AG44: 0 | AH44: 100 | AJ44: EAH-1, EAH-3 | AK44: n/a | AN44: GX | AY44: 321.1481481 | AZ44: 166.3444444 | BE44: 321.1481481 | BF44: 166.3444444 | BG44: 0 | BH44: 0 | BI44: 100 | BJ44: 100 | BK44: 142.8 | BL44: 71.4 | BM44: 321.1481481 | BN44: 166.3444444 | BU44: 1 | BV44: 1 | BX44: 8.995746447 | BY44: 4.659508248 | BZ44: 1.349361967 | CA44: 0.6989262372
F45: 0 | O45: 0 | P45: 0 | AK45: -
A46: x
B47: 3179 | C47: General Storage | D47: 66 | E47: 9 | F47: 594 | G47: Lab | H47: 1 | I47: 0 | K47: AH-1, AH-3 | L47: n/a | O47: 61.32679739 | P47: 18.39803922 | Q47: 0 | R47: 0 | S47: -100 | T47: -100 | U47: 61.32679739 | V47: 18.39803922 | AF47: 100 | AG47: 0 | AH47: 100 | AJ47: EAH-1, EAH-3 | AK47: P2 | AL47: 110 | AM47: 50 | AN47: GX | AY47: 161.3267974 | AZ47: 118.3980392 | BE47: 161.3267974 | BF47: 118.3980392 | BG47: 0 | BH47: 0 | BI47: 100 | BJ47: 100 | BK47: 0 | BL47: 0 | BM47: 161.3267974 | BN47: 118.3980392 | BU47: 1 | BV47: 1 | BX47: 16.2956361 | BY47: 11.9593979 | BZ47: 2.444345415 | CA47: 1.793909685
F48: 0 | O48: 0 | P48: 0 | AK48: -
A49: x
B50: 3217 | C50: Electrical | D50: 66 | E50: 9 | F50: 594 | G50: Lab | H50: 1 | I50: 0 | K50: AH-1, AH-3 | L50: n/a | O50: 61.32679739 | P50: 18.39803922 | Q50: 0 | R50: 0 | S50: 0 | T50: 0 | U50: 61.32679739 | V50: 18.39803922 | AF50: 0 | AG50: 0 | AH50: 0 | AJ50: EAH-1, EAH-3 | AK50: n/a | AN50: n/a | AY50: - | AZ50: - | BE50: 61.32679739 | BF50: 18.39803922 | BG50: 0 | BH50: 0 | BI50: 0 | BJ50: 0 | BK50: 0 | BL50: 0 | BM50: 61.32679739 | BN50: 18.39803922 | BU50: 1 | BV50: 1 | BX50: 6.194625999 | BY50: 1.8583878 | BZ50: 0.9291938998 | CA50: 0.2787581699
F51: 0 | O51: 0 | P51: 0 | AK51: -
A52: x
B53: 3222 | C53: Genetics Lab | D53: 328 | E53: 9 | F53: 2952 | G53: Lab | H53: 1 | I53: 1 | K53: AH-4, AH-6 | L53: P8 | M53: 112 | N53: 90 | O53: 304.7755991 | P53: 91.43267974 | Q53: 50 | R53: 0 | S53: -1.6 | T53: -50.8 | U53: 304.7755991 | V53: 91.43267974 | AF53: 100 | AG53: 0 | AH53: 100 | AJ53: EAH-4, EAH-6 | AK53: 111 | AL53: 108 | AM53: 35 | AN53: Snorkel | AY53: 50 | AZ53: 50 | BE53: 404.7755991 | BF53: 191.4326797 | BG53: 50 | BH53: 50 | BI53: 150 | BJ53: 100 | BK53: 98.4 | BL53: 49.2 | BM53: 404.7755991 | BN53: 191.4326797 | BU53: 1 | BV53: 1 | BX53: 8.227146324 | BY53: 3.890908125 | BZ53: 1.234071949 | CA53: 0.5836362187
F54: 0 | L54: - | O54: 0 | P54: 0 | AK54: P70 | AL54: 16 | AM54: 420 | AN54: GX | AY54: 354.7755991 | AZ54: 141.4326797
A55: x
B56: 3222A | C56: Research Lab | D56: 384 | E56: 9 | F56: 3456 | G56: Lab | H56: 1 | I56: 1 | K56: AH-4, AH-6 | L56: P10 | M56: 110 | N56: 50 | O56: 356.8104575 | P56: 107.0431373 | Q56: 195 | R56: 195 | S56: 15.2 | T56: -42.4 | U56: 356.8104575 | V56: 195 | AF56: 100 | AG56: 25 | AH56: 100 | AJ56: EAH-4, EAH-6 | AK56: P6 | AL56: 110 | AM56: 50 | AN56: Traditional Fume Hood | AO56: 3 | AP56: n | AQ56: 48 | AR56: 48 | AS56: 39 | AT56: 28 | AU56: 18 | AV56: 30.33333333 | AW56: 4.875 | AX56: 250 | AY56: 295 | AZ56: 295 | BA56: 10 | BB56: 300 | BC56: 540.8881108 | BD56: 163.6197917 | BE56: 456.8104575 | BF56: 207.0431373 | BG56: 295 | BH56: 295 | BI56: 295 | BJ56: 295 | BK56: 115.2 | BL56: 57.6 | BM56: 456.8104575 | BN56: 295 | BU56: 1 | BV56: 2 | BX56: 7.93073711 | BY56: 5.121527778 | BZ56: 1.189610566 | CA56: 0.7682291667
F57: 0 | L57: - | O57: 0 | P57: 0 | AK57: P69 | AL57: 110 | AM57: 50 | AN57: GX | AY57: 161.8104575 | AZ57: 0
A58: x
B59: 3222B | C59: Chem Lab | D59: 384 | E59: 9 | F59: 3456 | G59: Lab | H59: 1 | I59: 1 | K59: AH-4, AH-6 | L59: P67 | M59: 108 | N59: 35 | O59: 356.8104575 | P59: 107.0431373 | Q59: 195 | R59: 195 | S59: 15.2 | T59: -42.4 | U59: 356.8104575 | V59: 195 | AF59: 100 | AG59: 25 | AH59: 100 | AJ59: EAH-4, EAH-6 | AK59: 108 | AL59: 110 | AM59: 50 | AN59: Traditional Fume Hood | AO59: 3 | AP59: n | AQ59: 48 | AR59: 48 | AS59: 39 | AT59: 28 | AU59: 18 | AV59: 30.33333333 | AW59: 4.875 | AX59: 250 | AY59: 295 | AZ59: 295 | BA59: 10 | BB59: 300 | BC59: 540.8881108 | BD59: 163.6197917 | BE59: 456.8104575 | BF59: 207.0431373 | BG59: 295 | BH59: 295 | BI59: 295 | BJ59: 295 | BK59: 115.2 | BL59: 57.6 | BM59: 456.8104575 | BN59: 295 | BU59: 1 | BV59: 2 | BX59: 7.93073711 | BY59: 5.121527778 | BZ59: 1.189610566 | CA59: 0.7682291667
F60: 0 | L60: - | O60: 0 | P60: 0 | AK60: P69 | AL60: 110 | AM60: 50 | AN60: GX | AY60: 161.8104575 | AZ60: 0
A61: x
B62: 3222C | C62: Chem Lab | D62: 177 | E62: 9 | F62: 1593 | G62: Lab | H62: 1 | I62: 1 | K62: AH-4, AH-6 | L62: P93 | M62: 110 | N62: 50 | O62: 164.4673203 | P62: 49.34019608 | Q62: 195 | R62: 195 | S62: -46.9 | T62: -73.45 | U62: 195 | V62: 195 | AF62: 100 | AG62: 25 | AH62: 100 | AJ62: EAH-4, EAH-6 | AK62: 109 | AL62: 110 | AM62: 50 | AN62: Traditional Fume Hood | AO62: 3 | AP62: n | AQ62: 48 | AR62: 48 | AS62: 39 | AT62: 28 | AU62: 18 | AV62: 30.33333333 | AW62: 4.875 | AX62: 250 | AY62: 295 | AZ62: 295 | BA62: 10 | BB62: 300 | BC62: 540.8881108 | BD62: 163.6197917 | BE62: 264.4673203 | BF62: 149.3401961 | BG62: 295 | BH62: 295 | BI62: 295 | BJ62: 295 | BK62: 53.1 | BL62: 26.55 | BM62: 295 | BN62: 295 | BU62: 2 | BV62: 2 | BX62: 11.11111111 | BY62: 11.11111111 | BZ62: 1.666666667 | CA62: 1.666666667
F63: 0 | L63: - | O63: 0 | P63: 0 | AK63: - | AN63: no gx | AY63: 0 | AZ63: 0
A64: x
B65: 3222D | C65: Chem Lab | D65: 308 | E65: 9 | F65: 2772 | G65: Lab | H65: 1 | I65: 3 | K65: AH-4, AH-6 | L65: P4 | M65: 110 | N65: 50 | O65: 286.1917211 | P65: 85.85751634 | Q65: 490 | R65: 490 | S65: 84.8 | T65: -7.6 | U65: 490 | V65: 490 | AF65: 100 | AG65: 50 | AH65: 100 | AJ65: EAH-4, EAH-6 | AK65: 110 | AL65: 110 | AM65: 50 | AN65: Traditional Fume Hood | AO65: 3 | AP65: n | AQ65: 48 | AR65: 48 | AS65: 39 | AT65: 28 | AU65: 18 | AV65: 30.33333333 | AW65: 4.875 | AX65: 250 | AY65: 295 | AZ65: 295 | BA65: 10 | BB65: 300 | BC65: 540.8881108 | BD65: 163.6197917 | BE65: 386.1917211 | BF65: 185.8575163 | BG65: 590 | BH65: 590 | BI65: 590 | BJ65: 590 | BK65: 184.8 | BL65: 92.4 | BM65: 590 | BN65: 590 | BU65: 2 | BV65: 2 | BX65: 12.77056277 | BY65: 12.77056277 | BZ65: 1.915584416 | CA65: 1.915584416
F66: 0 | L66: - | O66: 0 | P66: 0 | AK66: P91 | AL66: 110 | AM66: 50 | AN66: Traditional Fume Hood | AO66: 3 | AP66: n | AQ66: 48 | AR66: 48 | AS66: 39 | AT66: 28 | AU66: 18 | AV66: 30.33333333 | AW66: 4.875 | AX66: 250 | AY66: 295 | AZ66: 295 | BA66: 10 | BB66: 300 | BC66: 540.8881108 | BD66: 163.6197917
A67: x
B68: 3225 | C68: Large Lab | D68: 1495 | E68: 9 | F68: 13455 | G68: Lab | H68: 1 | I68: 2 | K68: AH-4, AH-6 | L68: P11 | M68: 112 | N68: 90 | O68: 1389.14488 | P68: 416.7434641 | Q68: 345 | R68: 345 | S68: 697 | T68: 248.5 | U68: 1389.14488 | V68: 416.7434641 | AF68: 200 | AG68: 50 | AH68: 200 | AJ68: EAH-4, EAH-6 | AK68: P18 | AL68: 110 | AM68: 50 | AN68: Traditional Fume Hood | AO68: 3 | AP68: n | AQ68: 48 | AR68: 48 | AS68: 39 | AT68: 28 | AU68: 18 | AV68: 30.33333333 | AW68: 4.875 | AX68: 250 | AY68: 295 | AZ68: 295 | BA68: 10 | BB68: 300 | BC68: 540.8881108 | BD68: 163.6197917 | BE68: 1589.14488 | BF68: 616.7434641 | BG68: 545 | BH68: 545 | BI68: 545 | BJ68: 545 | BK68: 897 | BL68: 448.5 | BM68: 1589.14488 | BN68: 616.7434641 | BU68: 1 | BV68: 1 | BX68: 7.08648776 | BY68: 2.750249561 | BZ68: 1.062973164 | CA68: 0.4125374341
F69: 0 | L69: P15 | M69: 112 | N69: 90 | O69: 0 | P69: 0 | AK69: 103 | AL69: 110 | AM69: 50 | AN69: Slot Hood | AY69: 200 | AZ69: 200
F70: 0 | L70: P21 | M70: 24 | N70: 795 | O70: 0 | P70: 0 | AK70: P90 | AL70: 108 | AM70: 35 | AN70: Snorkel | AY70: 50 | AZ70: 50
F71: 0 | L71: - | O71: 0 | P71: 0 | AK71: P7 | AL71: 12 | AM71: 240 | AN71: GX | AY71: 1044.14488 | AZ71: 71.74346405
F72: 0 | L72: - | O72: 0 | P72: 0 | AK72: P9 | AL72: 112 | AM72: 90
F73: 0 | L73: - | O73: 0 | P73: 0 | AK73: P13 | AL73: 112 | AM73: 90
A74: x
B75: 3225B | C75: Bioprocess Lab | D75: 250 | E75: 9 | F75: 2250 | G75: Lab | H75: 1 | I75: 4 | K75: AH-4, AH-6 | L75: P3 | M75: 110 | N75: 50 | O75: 232.2984749 | P75: 69.68954248 | Q75: 168 | R75: 168 | S75: -25 | T75: -62.5 | U75: 232.2984749 | V75: 168 | AF75: 100 | AG75: 25 | AH75: 100 | AJ75: EAH-4, EAH-6 | AK75: P1 | AL75: 110 | AM75: 50 | AN75: BSC | AY75: 268 | AZ75: 268 | BE75: 332.2984749 | BF75: 169.6895425 | BG75: 268 | BH75: 268 | BI75: 268 | BJ75: 268 | BK75: 75 | BL75: 37.5 | BM75: =10*2250/60 -> 375 | BN75: 268 | BU75: 1 | BV75: 2 | BX75: 10 | BY75: 7.146666667 | BZ75: 1.3291939 | CA75: 1.072
F76: 0 | L76: - | O76: 0 | P76: 0 | AK76: P2 | AL76: 110 | AM76: 50 | AN76: BSC | AY76: 268 | AZ76: 268
A77: x
B78: 3225C | C78: Lab | D78: 229 | E78: 9 | F78: 2061 | G78: Lab | H78: 1 | I78: 0 | K78: AH-4, AH-6 | L78: P5 | M78: 110 | N78: 50 | O78: 212.7854031 | P78: 63.83562092 | Q78: 0 | R78: 0 | S78: -100 | T78: -100 | U78: 212.7854031 | V78: 63.83562092 | AF78: 100 | AG78: 0 | AH78: 100 | AJ78: EAH-4, EAH-6 | AK78: P7 | AL78: 12 | AM78: 240 | AN78: GX | AY78: 312.7854031 | AZ78: 163.8356209 | BE78: 312.7854031 | BF78: 163.8356209 | BG78: 0 | BH78: 0 | BI78: 100 | BJ78: 100 | BK78: 0 | BL78: 0 | BM78: 312.7854031 | BN78: 163.8356209 | BU78: 1 | BV78: 1 | BX78: 9.10583415 | BY78: 4.769595951 | BZ78: 1.365875122 | CA78: 0.7154393926
F79: 0 | L79: - | O79: 0 | P79: 0 | AK79: -
A80: x
B81: 3225D | C81: Lab | D81: 250 | E81: 9 | F81: 2250 | G81: Lab | H81: 1 | I81: 1 | K81: AH-4, AH-6 | L81: P22 | M81: 112 | N81: 90 | O81: 232.2984749 | P81: 69.68954248 | Q81: 0 | R81: 0 | S81: -25 | T81: -62.5 | U81: 232.2984749 | V81: 69.68954248 | AF81: 100 | AG81: 0 | AH81: 100 | AJ81: EAH-4, EAH-6 | AK81: P25 | AL81: 16 | AM81: 420 | AN81: GX | AY81: 332.2984749 | AZ81: 169.6895425 | BE81: 332.2984749 | BF81: 169.6895425 | BG81: 0 | BH81: 0 | BI81: 100 | BJ81: 100 | BK81: 75 | BL81: 37.5 | BM81: 332.2984749 | BN81: 169.6895425 | BU81: 1 | BV81: 1 | BX81: 8.861292665 | BY81: 4.525054466 | BZ81: 1.3291939 | CA81: 0.6787581699
F82: 0 | L82: - | O82: 0 | P82: 0 | AK82: -
A83: x
B84: 3226 | C84: Lab | D84: 326 | E84: 9 | F84: 2934 | G84: Lab | H84: 1 | I84: 0 | K84: AH-4, AH-6 | L84: P14 | M84: 108 | N84: 35 | O84: 302.9172113 | P84: 90.8751634 | Q84: 0 | R84: 0 | S84: -100 | T84: -100 | U84: 302.9172113 | V84: 90.8751634 | AF84: 100 | AG84: 0 | AH84: 100 | AJ84: EAH-4, EAH-6 | AK84: n/a | AN84: GX | AY84: 402.9172113 | AZ84: 190.8751634 | BE84: 402.9172113 | BF84: 190.8751634 | BG84: 0 | BH84: 0 | BI84: 100 | BJ84: 100 | BK84: 0 | BL84: 0 | BM84: 402.9172113 | BN84: 190.8751634 | BU84: 1 | BV84: 1 | BX84: 8.239615774 | BY84: 3.903377575 | BZ84: 1.235942366 | CA84: 0.5855066362
F85: 0 | L85: - | O85: 0 | P85: 0 | AK85: -
A86: x
B87: 3228 | C87: Autoclave Room | D87: 490 | E87: 9 | F87: 4410 | G87: Lab | H87: 1 | I87: 0 | K87: AH-4, AH-6 | L87: P16 | M87: 108 | N87: 35 | O87: 455.3050109 | P87: 136.5915033 | Q87: 50 | R87: 0 | S87: -200 | T87: -200 | U87: 455.3050109 | V87: 136.5915033 | AF87: 200 | AG87: 0 | AH87: 200 | AJ87: EAH-4, EAH-6 | AK87: P19 | AL87: 16 | AM87: 420 | AN87: Canopy | AY87: 50 | AZ87: 50 | BE87: 655.3050109 | BF87: 336.5915033 | BG87: 50 | BH87: 50 | BI87: 250 | BJ87: 200 | BK87: 0 | BL87: 0 | BM87: 655.3050109 | BN87: 336.5915033 | BU87: 1 | BV87: 1 | BX87: 8.915714434 | BY87: 4.579476235 | BZ87: 1.337357165 | CA87: 0.6869214352
F88: 0 | L88: - | O88: 0 | P88: 0 | AN88: GX | AY88: 605.3050109 | AZ88: 286.5915033
A89: x
B90: 3228B | C90: Shared Lab | D90: 490 | E90: 9 | F90: 4410 | G90: Lab | H90: 1 | I90: 0 | K90: AH-4, AH-6 | L90: P59 | M90: 110 | N90: 50 | O90: 455.3050109 | P90: 136.5915033 | Q90: 0 | R90: 0 | S90: -100 | T90: -100 | U90: 455.3050109 | V90: 136.5915033 | AF90: 100 | AG90: 0 | AH90: 100 | AJ90: EAH-4, EAH-6 | AK90: P54 | AL90: 24 | AM90: 795 | AN90: GX | AY90: 555.3050109 | AZ90: 236.5915033 | BE90: 555.3050109 | BF90: 236.5915033 | BG90: 0 | BH90: 0 | BI90: 100 | BJ90: 100 | BK90: 0 | BL90: 0 | BM90: 555.3050109 | BN90: 236.5915033 | BU90: 1 | BV90: 1 | BX90: 7.555170216 | BY90: 3.218932017 | BZ90: 1.133275532 | CA90: 0.4828398026
F91: 0 | O91: 0 | P91: 0 | AK91: -
A92: x
B93: 3230 | C93: General Lab Space | D93: 118 | E93: 9 | F93: 1062 | G93: Lab | H93: 1 | I93: 0 | K93: AH-4, AH-6 | L93: P30 | M93: - | O93: 109.6448802 | P93: 32.89346405 | Q93: 0 | R93: 0 | S93: -100 | T93: -100 | U93: 109.6448802 | V93: 32.89346405 | AF93: 100 | AG93: 0 | AH93: 100 | AJ93: EAH-4, EAH-6 | AK93: P52 | AL93: 20 | AM93: 535 | AN93: GX | AY93: 209.6448802 | AZ93: 132.8934641 | BE93: 209.6448802 | BF93: 132.8934641 | BG93: 0 | BH93: 0 | BI93: 100 | BJ93: 100 | BK93: 0 | BL93: 0 | BM93: 209.6448802 | BN93: 132.8934641 | BU93: 1 | BV93: 1 | BX93: 11.84434351 | BY93: 7.508105314 | BZ93: 1.776651527 | CA93: 1.126215797
F94: 0 | L94: - | O94: 0 | P94: 0 | AK94: -
A95: x
B96: 3240 | C96: Shared | D96: 79 | E96: 9 | F96: 711 | G96: Lab | H96: 1 | I96: 0 | K96: AH-4, AH-6 | L96: P23 | M96: 108 | N96: 35 | O96: 73.40631808 | P96: 22.02189542 | Q96: 0 | R96: 0 | S96: -100 | T96: -100 | U96: 73.40631808 | V96: 22.02189542 | AF96: 100 | AG96: 0 | AH96: 100 | AJ96: EAH-4, EAH-6 | AK96: P28 | AL96: 6 | AM96: 70 | AN96: GX | AY96: 173.4063181 | AZ96: 122.0218954 | BE96: 173.4063181 | BF96: 122.0218954 | BG96: 0 | BH96: 0 | BI96: 100 | BJ96: 100 | BK96: 0 | BL96: 0 | BM96: 173.4063181 | BN96: 122.0218954 | BU96: 1 | BV96: 1 | BX96: 14.63344456 | BY96: 10.29720636 | BZ96: 2.195016685 | CA96: 1.544580955
F97: 0 | L97: - | O97: 0 | P97: 0 | AK97: -
A98: x
B99: 3244 | C99: Bio Lab | D99: 115 | E99: 9 | F99: 1035 | G99: Lab | H99: 1 | I99: 1 | K99: AH-4, AH-6 | L99: P33 | M99: 108 | N99: 35 | O99: 106.8572985 | P99: 32.05718954 | Q99: 168 | R99: 168 | S99: -65.5 | T99: -82.75 | U99: 168 | V99: 168 | AF99: 100 | AG99: 25 | AH99: 100 | AJ99: EAH-4, EAH-6 | AK99: M31 | AL99: 110 | AM99: 50 | AN99: BSC | AY99: 268 | AZ99: 268 | BE99: 206.8572985 | BF99: 132.0571895 | BG99: 268 | BH99: 268 | BI99: 268 | BJ99: 268 | BK99: 34.5 | BL99: 17.25 | BM99: 268 | BN99: 268 | BU99: 2 | BV99: 2 | BX99: 15.53623188 | BY99: 15.53623188 | BZ99: 2.330434783 | CA99: 2.330434783
F100: 0 | L100: - | O100: 0 | P100: 0 | AK100: P49 | AL100: 110 | AM100: 50 | AN100: GX | AY100: 0 | AZ100: 0
A101: x
B102: 3247 | C102: Shared Lab | D102: 354 | E102: 9 | F102: 3186 | G102: Lab | H102: 1 | I102: 0 | K102: AH-4, AH-6 | L102: 107 | M102: 112 | N102: 90 | O102: 328.9346405 | P102: 98.68039216 | Q102: 0 | R102: 0 | S102: -100 | T102: -100 | U102: 328.9346405 | V102: 98.68039216 | AF102: 100 | AG102: 0 | AH102: 100 | AJ102: EAH-4, EAH-6 | AK102: P38 | AL102: 16 | AM102: 420 | AN102: GX | AY102: 428.9346405 | AZ102: 198.6803922 | BE102: 428.9346405 | BF102: 198.6803922 | BG102: 0 | BH102: 0 | BI102: 100 | BJ102: 100 | BK102: 0 | BL102: 0 | BM102: 428.9346405 | BN102: 198.6803922 | BU102: 1 | BV102: 1 | BX102: 8.07786517 | BY102: 3.741626971 | BZ102: 1.211679775 | CA102: 0.5612440456
F103: 0 | L103: - | O103: 0 | P103: 0 | AK103: -
A104: x
B105: 3251 | C105: Teaching Lab | D105: 1465 | E105: 9 | F105: 13185 | G105: Lab | H105: 1 | I105: 2 | K105: AH-4, AH-6 | L105: P40 | M105: 112 | N105: 90 | O105: 1361.269063 | P105: 408.380719 | Q105: 95 | R105: 95 | S105: 679 | T105: 239.5 | U105: 1361.269063 | V105: 408.380719 | AF105: 200 | AG105: 25 | AH105: 200 | AJ105: EAH-4, EAH-6 | AK105: P42 | AL105: 110 | AM105: 50 | AN105: Traditional Fume Hood | AO105: 3 | AP105: n | AQ105: 48 | AR105: 48 | AS105: 39 | AT105: 28 | AU105: 18 | AV105: 30.33333333 | AW105: 4.875 | AX105: 250 | AY105: 295 | AZ105: 295 | BA105: 10 | BB105: 300 | BC105: 540.8881108 | BD105: 163.6197917 | BE105: 1561.269063 | BF105: 608.380719 | BG105: 295 | BH105: 295 | BI105: 295 | BJ105: 295 | BK105: 879 | BL105: 439.5 | BM105: 1561.269063 | BN105: 608.380719 | BU105: 1 | BV105: 1 | BX105: 7.104751141 | BY105: 2.768512942 | BZ105: 1.065712671 | CA105: 0.4152769413
F106: 0 | L106: P43 | M106: 112 | N106: 90 | O106: 0 | P106: 0 | AK106: P41 | AL106: 112 | AM106: 90 | AN106: GX | AY106: 1266.269063 | AZ106: 313.380719
F107: 0 | L107: - | O107: 0 | P107: 0 | AK107: P44 | AL107: 110 | AM107: 50
A108: x
B109: 3271 | C109: Chem Lab | D109: 742 | E109: 9 | F109: 6678 | G109: Lab | H109: 1 | I109: 2 | K109: AH-4, AH-6 | L109: P63 | M109: 112 | N109: 90 | O109: 689.4618736 | P109: 206.8385621 | Q109: 190 | R109: 190 | S109: 245.2 | T109: 22.6 | U109: 689.4618736 | V109: 206.8385621 | AF109: 200 | AG109: 50 | AH109: 200 | AJ109: EAH-4, EAH-6 | AK109: P57 | AL109: 110 | AM109: 50 | AN109: Traditional Fume Hood | AO109: 4 | AP109: n | AQ109: 48 | AR109: 48 | AS109: 39 | AT109: 28 | AU109: 18 | AV109: 30.33333333 | AW109: 4.875 | AX109: 375 | AY109: 390 | AZ109: 390 | BA109: 10 | BB109: 500 | BC109: 715.0724176 | BD109: 272.6996528 | BE109: 889.4618736 | BF109: 406.8385621 | BG109: 390 | BH109: 390 | BI109: 390 | BJ109: 390 | BK109: 445.2 | BL109: 222.6 | BM109: 889.4618736 | BN109: 406.8385621 | BU109: 1 | BV109: 1 | BX109: 7.991571192 | BY109: 3.655332993 | BZ109: 1.198735679 | CA109: 0.5482999489
F110: 0 | L110: P99 | M110: 108 | N110: 35 | O110: 0 | P110: 0 | AK110: P62 | AL110: 112 | AM110: 90 | AN110: GX | AY110: 499.4618736 | AZ110: 16.83856209
A111: x
B112: 3272 | C112: Bio process Lab | D112: 176 | E112: 9 | F112: 1584 | G112: Lab | H112: 1 | I112: 1 | K112: AH-4, AH-6 | L112: P64 | M112: 108 | N112: 35 | O112: 163.5381264 | P112: 49.06143791 | Q112: 168 | R112: 168 | S112: -47.2 | T112: -73.6 | U112: 168 | V112: 168 | AF112: 100 | AG112: 25 | AH112: 100 | AJ112: EAH-4, EAH-6 | AK112: P65 | AL112: 110 | AM112: 50 | AN112: BSC | AY112: 268 | AZ112: 268 | BE112: 263.5381264 | BF112: 149.0614379 | BG112: 268 | BH112: 268 | BI112: 268 | BJ112: 268 | BK112: 52.8 | BL112: 26.4 | BM112: 268 | BN112: 268 | BU112: 2 | BV112: 2 | BX112: 10.15151515 | BY112: 10.15151515 | BZ112: 1.522727273 | CA112: 1.522727273
F113: 0 | L113: - | O113: 0 | P113: 0 | AK113: P68 | AL113: 110 | AM113: 50 | AN113: BSC | AY113: 268 | AZ113: 268
F114: 0 | L114: - | O114: 0 | P114: 0 | AK114: P100 | AL114: 110 | AM114: 50 | AN114: Lam Flow Hood | AY114: 200 | AZ114: 200
A115: x
B116: 3293 | C116: Lab | D116: 872 | E116: 9 | F116: 7848 | G116: Lab | H116: 1 | I116: 1 | K116: AH-4, AH-6 | L116: P66 | M116: 114 | N116: 200 | O116: 810.2570806 | P116: 243.0771242 | Q116: 50 | R116: 0 | S116: 161.6 | T116: 30.8 | U116: 810.2570806 | V116: 243.0771242 | AF116: 100 | AG116: 0 | AH116: 100 | AJ116: EAH-4, EAH-6 | AK116: P97 | AL116: 108 | AM116: 35 | AN116: Snorkel | AY116: 50 | AZ116: 50 | BE116: 910.2570806 | BF116: 343.0771242 | BG116: 50 | BH116: 50 | BI116: 150 | BJ116: 100 | BK116: 261.6 | BL116: 130.8 | BM116: 910.2570806 | BN116: 343.0771242 | BU116: 1 | BV116: 1 | BX116: 6.959151992 | BY116: 2.622913793 | BZ116: 1.043872799 | CA116: 0.393437069
F117: 0 | L117: P74 | M117: 114 | N117: 200 | O117: 0 | P117: 0 | AK117: P72 | AL117: 16 | AM117: 420 | AN117: GX | AY117: 860.2570806 | AZ117: 293.0771242
F118: 0 | L118: - | O118: 0 | P118: 0 | AK118: P76 | AL118: 24 | AM118: 795
A119: x

Sheet ASHRAE Design Levels
A1: Air Change Recommendations
A2: This Air Change Rate Calculator references air changes recommended by the ASHRAE Classification of Laboratory Ventilation Design Levels based on the risk level (risk control band).
A26: These tables are directly from the ASHRAE Classification of Laboratory Ventilation Design Levels. Refer also to ASHRAE Standard 62.1 for further recommendations.

Sheet Glossary of Terms
A1: Glossary of Terms
A2: The worksheets in this calculator contain acronyms and terms that may be unfamiliar, and are included in the glossary below as a reference.
A3: ACH | B3: Air changes per an hour
A5: CFM | B5: Cubic feet per minute (ft3/min)
A7: Heat Load Label
A9: Risk Control Band | B9: Also referred to as a Risk Level, this quantifies the risk associated with hazards present in the lab space based on a variety of factors, including hazard type, generation method and rate, etc. See LVRA User Guide for more.
A11: AHU # | B11: Air handling unit index number. This is defined by your insitution's approach to labeling equipment.
A13: VAV Box # | B13: Variable Air Volume Box number. This is defined by your insitution's approach to labeling equipment.
A16: Exhaust Type
A17: BSC | B17: Biological Safety Cabinet
A18: GX | B18: General Exhaust
A19: Traditional Fume Hood | B19: A traditional fume hood is used to contain ventilation hazards and hosts an enclosed workspace that contains the hazards and removes them via a vent.
A20: Wet Process Station | B20: A fume hood with all equiment for wet-process or chemical processing procedures, usually hosts a sink within the enclosed fume hood space.
A21: Box Flow: Max Flow (FH @ 18 in.) | B21: Maximum flow is measured with fume hood sash opened to a height of 18 inches.
A22: Canopy | B22: A specific type of fume hood designed to vent non-toxic vapors (e.g. steam, heat, odors) and does not have an enclosed work area in traditional fume hoods
A23: FPM | B23: Feet per minute. Common imperial unit of measurement for face velocity of fumehoods.

Sheet Worksheet with Additional Info
B2: Room Information | J2: Supply | AD2: Transfer Flow | AG2: Exhaust | BT2: Calculated Metrics
J3: System Info | N3: Qs based on Conditioning | P3: Qs to maintain dP | R3: Qs based on ACH | T3: Room Supply Flows | V3: Box Level Supply Set Points | Z3: Box Level Existing Supply Set Points | AB3: Zone Supply Flows | AG3: System Info | AL3: Fume Hood Info | AU3: Box Flows | AX3: Duct Transport Velocity | BB3: Qex bas on Conditioning | BD3: Qex based on Exhaust Devices | BF3: Qex to maintain dP | BH3: Qex based on ACH | BJ3: Room Exhaust Flows | BL3: Box Level Exhaust Set Points | BP3: Zone Exhaust Flows | BT3: Air Change Rates
J4: Tags, ID, type, etc. | N4: Based on heat load | O4: Based on sash closed/ not in use | P4: Room Exhaust & Transfer Flow | R4: ACH Exhaust & Transfer Flow | T4: Max/Min of Conditioning, dP, & ACH | V4: Based on Current Box Design | X4: Based on Optimized Box Supply Flows | Z4: Based on Current BAS Data | AB4: Based on Sum of Optimized Box Flows in Zone | AD4: 100 cfm per door | AE4: 10% of Max Exh. | AF4: Greater of per door or 10% | AG4: Tags, ID, type, etc. | AL4: Dims, Area, etc. | AV4: Sash Open/In Use | AW4: Sash Closed/Not In Use | AX4: FH Duct | AY4: LVRA RCB Criteria | AZ4: Resultant air velocity | BA4: Necessary Flow | BB4: Includes Transfer Flow | BD4: No GX | BF4: Includes GX | BH4: @ Occ ACH | BI4: @ Unocc ACH | BJ4: Max/Min based on Exh Devices, dP, Cond., or ACH | BL4: Based on Current Box Design | BN4: Based on Optimized Exhaust Flows | BP4: Based on Sum of Optimized Box Flows in Zone | BT4: Based on Room Exhaust Flows
B5: Room # | C5: Room Name | D5: Area (ft2) | E5: Height (ft) | F5: Volume (ft3) | G5: Room Type | H5: Heat Load Label (1-5) | I5: Risk Level # | J5: AHU # | K5: VAV Box # | L5: Box Size | M5: Box Min Flows (cfm) | N5: Max Flow (Full Cooling) (cfm) | O5: Min Flow (Full Heating) (cfm) | P5: Max Flow based on Max Exhaust (cfm) | Q5: Min Flow based on Min Exhaust (cfm) | R5: Max Flow based on Max ACH Exhaust (cfm) | S5: Min Flow based on Min ACH Exhaust (cfm) | T5: Room Flow @ Max (cfm) | U5: Room Flow @ Min (cfm) | V5: Box Supply Flow @ Max (cfm) | W5: Box Supply Flow @ Min (cfm) | X5: Supply Box Flow @ Max (cfm) | Y5: Supply Box Flow @ Min (cfm) | Z5: Supply Box Flow @ Max (cfm) | AA5: Supply Box Flow @ Min (cfm) | AB5: Zone Supply Flow @ Max. (cfm) | AC5: Zone Supply Flow @ Min. (cfm) | AD5: Door Transfer Flow (cfm) | AE5: Flow @ 10% Max. Device Exh. (cfm) | AF5: Greater of Door and 10% Max Exh (cfm) | AG5: Exh. Fan # | AH5: VVE Box # | AI5: Box Size | AJ5: Min Box Flows (cfm) | AK5: Exhaust Type | AL5: RCB Rating | AM5: Retrofit? (y/n) | AN5: Total Width (in) | AO5: Device Height (in) | AP5: Face Width (in) | AQ5: Hood Depth (in) | AR5: Opening Height (in) | AS5: Hood Interior Volume (ft3) | AT5: Face Area (ft2) | AU5: Min ACH based on RCB rating | AV5: Max Flow (FH @ 18 in.) (cfm) | AW5: Min Flow (Based on RCB rating & size) (cfm) | AX5: Duct Diameter (in) | AY5: Necessary Duct Velocity (fpm) | AZ5: Calc. Duct Velocity from Min flow (fpm) | BA5: Flow of Min Necessary Duct Velocity (cfm) | BB5: Room Max Flow (Full Cooling) (cfm) | BC5: Room Min Flow (Full Heating) (cfm) | BD5: Room Max Flow (ECDs @ Max) (cfm) | BE5: Room Min Flow (ECDs @ Min) (cfm) | BF5: Room Max Flow (cfm) | BG5: Room Min Flow (cfm) | BH5: Room Max Flow (cfm) | BI5: Room Min Flow (cfm) | BJ5: Room Max Flow (cfm) | BK5: Room Min Flow (cfm) | BL5: Box Exhaust Flow @ Max (cfm) | BM5: Box Exhaust Flow @ Min (cfm) | BN5: Box Flow @ Max. Room Exhaust (cfm) | BO5: Box Flow @ Min. Room Exhaust (cfm) | BP5: Zone Exhaust Flow @ Max (cfm) | BQ5: Zone Exhaust Flow @ Min (cfm) | BT5: Max ACH | BU5: Min ACH | BV5: Max cfm/sf | BW5: Min cfm/sf | BX5: Notes
A7: Example | B7: 3111 | C7: Tissue Culture | D7: 324 | E7: 9 | F7: =D7*E7 -> 2916 | G7: Lab | H7: 1 | I7: 1 | J7: AH-1, AH-3 | K7: M49 | L7: 110 | M7: 50 | N7: 301.0588235 | O7: 90.31764706 | P7: 972 | Q7: 972 | R7: -2.8 | S7: -51.4 | T7: 972 | U7: 972 | AD7: -100 | AE7: 100 | AF7: 100 | AG7: EAH-1, EAH-3 | AH7: M71 | AI7: 110 | AJ7: 50 | AK7: BSC | AV7: 268 | AW7: 268 | BB7: 401.0588235 | BC7: 190.3176471 | BD7: 1072 | BE7: 1072 | BF7: 1072 | BG7: 1072 | BH7: 97.2 | BI7: 48.6 | BJ7: =SUM(AV7:AV12) -> 1072 | BK7: =SUM(AW7:AW12) -> 1072 | BR7: 2 | BS7: 2 | BT7: =(60*'Worksheet with Additional Info'!BJ7)/('Worksheet with Additional Info'!F7) -> 22.05761317 | BU7: =(60*BK7)/('Worksheet with Additional Info'!F7) -> 22.05761317 | BV7: 3.308641975 | BW7: 3.308641975
F8: 0 | K8: - | N8: 0 | O8: 0 | AH8: M72 | AI8: 110 | AJ8: 50 | AK8: BSC | AV8: 268 | AW8: 268
F9: 0 | K9: - | N9: 0 | O9: 0 | AH9: - | AK9: BSC | AV9: 268 | AW9: 268
F11: 0 | K11: - | N11: 0 | O11: 0 | AH11: - | AK11: BSC | AV11: 268 | AW11: 268
F12: 0 | K12: - | N12: 0 | O12: 0 | AH12: M5 | AI12: 110 | AJ12: 50 | AK12: GX | AV12: 0 | AW12: 0
F14: =D14*E14 -> 0 | BT14: =(60*'Worksheet with Additional Info'!BJ14)/('Worksheet with Additional Info'!F14) ->  | BU14: =(60*BK14)/('Worksheet with Additional Info'!F14) -> 
F15: 0
F16: 0
F18: 0
F19: 0
F21: =D21*E21 -> 0 | BT21: =(60*'Worksheet with Additional Info'!BJ21)/('Worksheet with Additional Info'!F21) ->  | BU21: =(60*BK21)/('Worksheet with Additional Info'!F21) -> 
F22: 0
F23: 0
F25: 0
F26: 0
F28: =D28*E28 -> 0 | BT28: =(60*'Worksheet with Additional Info'!BJ28)/('Worksheet with Additional Info'!F28) ->  | BU28: =(60*BK28)/('Worksheet with Additional Info'!F28) -> 
F29: 0
F30: 0
F32: 0
F33: 0
F35: =D35*E35 -> 0 | BT35: =(60*'Worksheet with Additional Info'!BJ35)/('Worksheet with Additional Info'!F35) ->  | BU35: =(60*BK35)/('Worksheet with Additional Info'!F35) -> 
F36: 0
F37: 0
F39: 0
F40: 0
F42: =D42*E42 -> 0 | BT42: =(60*'Worksheet with Additional Info'!BJ42)/('Worksheet with Additional Info'!F42) ->  | BU42: =(60*BK42)/('Worksheet with Additional Info'!F42) -> 
F43: 0
F44: 0
F46: 0
F47: 0
F49: =D49*E49 -> 0 | BT49: =(60*'Worksheet with Additional Info'!BJ49)/('Worksheet with Additional Info'!F49) ->  | BU49: =(60*BK49)/('Worksheet with Additional Info'!F49) -> 
F50: 0
F51: 0
F53: 0
F54: 0
